[Event "Late-Titled-Tuesday-Blitz-November-28-2023"]
[Site "Chess.com"]
[Date "2023.11.28"]
[Round "2"]
[White "NikolaGry"]
[Black "HajiyevKanan"]
[Result "1/2-1/2"]
[WhiteElo "2707"]
[BlackElo "2513"]
[TimeControl "180+1"]
[EndTime "14:17:27 PST"]
[Termination "Game drawn by repetition"]

1. d4 {[%clk 0:03:00.9]} 1... d5 {[%clk 0:02:58.9]} 2. Bg5 {[%clk 0:02:59.8]}
2... c5 {[%clk 0:02:58.9]} 3. c3 {[%clk 0:02:52.5]} 3... cxd4 {[%clk 0:02:56]}
4. cxd4 {[%clk 0:02:51.4]} 4... Nc6 {[%clk 0:02:56.9]} 5. e3 {[%clk 0:02:48.3]}
5... Qa5+ {[%clk 0:02:52.9]} 6. Qd2 {[%clk 0:02:40.5]} 6... Qxd2+ {[%clk
0:02:51.8]} 7. Kxd2 {[%clk 0:02:37.9]} 7... Bf5 {[%clk 0:02:52.7]} 8. Nc3 {[%clk
0:02:34.5]} 8... e6 {[%clk 0:02:50.9]} 9. Bd3 {[%clk 0:02:29.5]} 9... Bxd3
{[%clk 0:02:50.1]} 10. Kxd3 {[%clk 0:02:29.6]} 10... Bb4 {[%clk 0:02:40.8]} 11.
Nge2 {[%clk 0:02:26.7]} 11... Nge7 {[%clk 0:02:38.2]} 12. Rhc1 {[%clk
0:02:24.8]} 12... Kd7 {[%clk 0:02:34.6]} 13. a3 {[%clk 0:02:16.3]} 13... Bxc3
{[%clk 0:02:32.4]} 14. Rxc3 {[%clk 0:02:11.6]} 14... Rhc8 {[%clk 0:02:33.3]} 15.
Rac1 {[%clk 0:02:09]} 15... h6 {[%clk 0:02:33.7]} 16. Bf4 {[%clk 0:02:07]} 16...
g5 {[%clk 0:02:26.1]} 17. Bg3 {[%clk 0:02:04.5]} 17... Nf5 {[%clk 0:02:26.1]}
18. R1c2 {[%clk 0:01:42.4]} 18... h5 {[%clk 0:02:12.2]} 19. h3 {[%clk
0:01:41.4]} 19... Nxg3 {[%clk 0:01:59.8]} 20. Nxg3 {[%clk 0:01:40.6]} 20... h4
{[%clk 0:02:00]} 21. Nf1 {[%clk 0:01:36.2]} 21... f5 {[%clk 0:01:56.5]} 22. Nd2
{[%clk 0:01:34.7]} 22... g4 {[%clk 0:01:54.8]} 23. Nb3 {[%clk 0:01:27.4]} 23...
b6 {[%clk 0:01:54]} 24. Nc1 {[%clk 0:01:27]} 24... e5 {[%clk 0:01:36.9]} 25.
dxe5 {[%clk 0:01:16.3]} 25... Nxe5+ {[%clk 0:01:37.8]} 26. Kd4 {[%clk
0:01:13.4]} 26... Rxc3 {[%clk 0:01:35]} 27. Rxc3 {[%clk 0:01:10.3]} 27... Kd6
{[%clk 0:01:35.9]} 28. Nd3 {[%clk 0:00:46.5]} 28... Nc6+ {[%clk 0:01:35.8]} 29.
Rxc6+ {[%clk 0:00:46.4]} 29... Kxc6 {[%clk 0:01:36.4]} 30. Nb4+ {[%clk
0:00:46.6]} 30... Kd6 {[%clk 0:01:35.3]} 31. Nxd5 {[%clk 0:00:45.5]} 31... gxh3
{[%clk 0:01:32.6]} 32. gxh3 {[%clk 0:00:45.1]} 32... Rg8 {[%clk 0:01:32.6]} 33.
Nf4 {[%clk 0:00:39.1]} 33... Rg1 {[%clk 0:01:30.9]} 34. b3 {[%clk 0:00:36.1]}
34... b5 {[%clk 0:01:20.7]} 35. Kc3 {[%clk 0:00:31.1]} 35... a5 {[%clk
0:01:19.7]} 36. a4 {[%clk 0:00:25.9]} 36... b4+ {[%clk 0:01:19.1]} 37. Kc4
{[%clk 0:00:26]} 37... Rc1+ {[%clk 0:01:19.7]} 38. Kb5 {[%clk 0:00:25.3]} 38...
Rc3 {[%clk 0:01:18.5]} 39. Kxa5 {[%clk 0:00:25.1]} 39... Rxb3 {[%clk 0:01:19.1]}
40. Kb5 {[%clk 0:00:25]} 40... Rb1 {[%clk 0:01:16.8]} 41. a5 {[%clk 0:00:21.2]}
41... b3 {[%clk 0:01:17.1]} 42. Kb4 {[%clk 0:00:21.2]} 42... b2 {[%clk 0:01:14]}
43. Kb3 {[%clk 0:00:21.2]} 43... Rf1 {[%clk 0:00:49.2]} 44. Kxb2 {[%clk
0:00:21]} 44... Rxf2+ {[%clk 0:00:49.9]} 45. Kc3 {[%clk 0:00:21.2]} 45... Rf3
{[%clk 0:00:37.2]} 46. Kd3 {[%clk 0:00:20.2]} 46... Kc5 {[%clk 0:00:34.8]} 47.
Ne6+ {[%clk 0:00:16.2]} 47... Kd6 {[%clk 0:00:24.2]} 48. a6 {[%clk 0:00:14.4]}
48... Rf1 {[%clk 0:00:21.9]} 49. Nd4 {[%clk 0:00:13.9]} 49... Ra1 {[%clk
0:00:16.6]} 50. Nxf5+ {[%clk 0:00:13.2]} 50... Ke5 {[%clk 0:00:17]} 51. Nxh4
{[%clk 0:00:12.9]} 51... Rxa6 {[%clk 0:00:16.1]} 52. Nf3+ {[%clk 0:00:11.4]}
52... Kf5 {[%clk 0:00:15.4]} 53. Nd4+ {[%clk 0:00:11.5]} 53... Kg5 {[%clk
0:00:12.6]} 54. Nf3+ {[%clk 0:00:11.4]} 54... Kf5 {[%clk 0:00:12.2]} 55. Nd4+
{[%clk 0:00:10.8]} 55... Kg5 {[%clk 0:00:12.7]} 56. Nf3+ {[%clk 0:00:10.8]}
56... Kf5 {[%clk 0:00:13.3]} 1/2-1/2

[Event "Late-Titled-Tuesday-Blitz-November-28-2023"]
[Site "Chess.com"]
[Date "2023.11.28"]
[Round "2"]
[White "GiorgianBarbosa"]
[Black "Lukianoo"]
[Result "0-1"]
[WhiteElo "2526"]
[BlackElo "2827"]
[TimeControl "180+1"]
[EndTime "14:17:28 PST"]
[Termination "Lukianoo won by resignation"]

1. d4 {[%clk 0:03:00.9]} 1... Nf6 {[%clk 0:02:59.7]} 2. Nf3 {[%clk 0:02:51.6]}
2... e6 {[%clk 0:02:58.9]} 3. e3 {[%clk 0:02:52]} 3... b6 {[%clk 0:02:57.8]} 4.
Bd3 {[%clk 0:02:51.6]} 4... Bb7 {[%clk 0:02:57.4]} 5. O-O {[%clk 0:02:52.2]}
5... d5 {[%clk 0:02:57.2]} 6. Nbd2 {[%clk 0:02:52.4]} 6... c5 {[%clk 0:02:56.6]}
7. b3 {[%clk 0:02:52.2]} 7... Bd6 {[%clk 0:02:55.6]} 8. Bb2 {[%clk 0:02:51.1]}
8... O-O {[%clk 0:02:55.3]} 9. a3 {[%clk 0:02:50.3]} 9... Nbd7 {[%clk
0:02:54.9]} 10. Ne5 {[%clk 0:02:44.6]} 10... Rc8 {[%clk 0:02:54.2]} 11. f4
{[%clk 0:02:40]} 11... Ne4 {[%clk 0:02:48]} 12. Bxe4 {[%clk 0:02:21.8]} 12...
dxe4 {[%clk 0:02:48.9]} 13. Ndc4 {[%clk 0:02:22.2]} 13... Nxe5 {[%clk
0:02:48.3]} 14. dxe5 {[%clk 0:02:12.2]} 14... Be7 {[%clk 0:02:48.2]} 15. Nd6
{[%clk 0:02:10.2]} 15... Bxd6 {[%clk 0:02:45.2]} 16. exd6 {[%clk 0:02:03.2]}
16... Qd7 {[%clk 0:02:35.2]} 17. Qg4 {[%clk 0:01:58]} 17... f6 {[%clk
0:02:34.6]} 18. Rad1 {[%clk 0:01:58]} 18... Rc6 {[%clk 0:02:29.5]} 19. h4 {[%clk
0:01:39.8]} 19... Rxd6 {[%clk 0:02:25.2]} 20. Rxd6 {[%clk 0:01:40.7]} 20... Qxd6
{[%clk 0:02:25.4]} 21. Rd1 {[%clk 0:01:38.9]} 21... Qe7 {[%clk 0:02:23.1]} 22.
h5 {[%clk 0:01:34.7]} 22... h6 {[%clk 0:02:22.5]} 23. Rd2 {[%clk 0:01:29.9]}
23... Bc8 {[%clk 0:02:03.5]} 24. Qe2 {[%clk 0:01:23.3]} 24... Rd8 {[%clk
0:01:55]} 25. Rxd8+ {[%clk 0:01:07]} 25... Qxd8 {[%clk 0:01:55.9]} 26. Qc4
{[%clk 0:01:06.9]} 26... Qd5 {[%clk 0:01:54.9]} 27. Qxd5 {[%clk 0:00:21]} 27...
exd5 {[%clk 0:01:55.8]} 28. b4 {[%clk 0:00:21.7]} 28... Bg4 {[%clk 0:01:42.5]}
29. bxc5 {[%clk 0:00:20.4]} 29... bxc5 {[%clk 0:01:43.4]} 30. Kf2 {[%clk
0:00:18.9]} 30... Bxh5 {[%clk 0:01:42.2]} 31. a4 {[%clk 0:00:19.5]} 31... Bd1
{[%clk 0:01:41.3]} 32. Ba3 {[%clk 0:00:18.5]} 32... c4 {[%clk 0:01:36.2]} 33.
Ke1 {[%clk 0:00:16.3]} 33... Bxc2 {[%clk 0:01:35.5]} 34. a5 {[%clk 0:00:16.9]}
34... a6 {[%clk 0:01:31.6]} 35. Kd2 {[%clk 0:00:15.2]} 35... Ba4 {[%clk
0:01:30.5]} 36. Kc3 {[%clk 0:00:14.1]} 36... Kf7 {[%clk 0:01:30.4]} 37. Kd4
{[%clk 0:00:14.4]} 37... f5 {[%clk 0:01:18.2]} 38. Bb4 {[%clk 0:00:07.7]} 38...
Bb3 {[%clk 0:00:43.9]} 39. Kxd5 {[%clk 0:00:04.4]} 39... c3+ {[%clk 0:00:43.5]}
40. Ke5 {[%clk 0:00:04.7]} 40... c2 {[%clk 0:00:43.5]} 41. Ba3 {[%clk
0:00:05.3]} 41... Be6 {[%clk 0:00:40.3]} 42. Bc1 {[%clk 0:00:05.2]} 42... g6
{[%clk 0:00:38.8]} 43. g3 {[%clk 0:00:05.4]} 43... Bc8 {[%clk 0:00:33]} 44. Kd4
{[%clk 0:00:06.3]} 44... Bd7 {[%clk 0:00:30.2]} 45. Kc3 {[%clk 0:00:06.9]} 45...
Ba4 {[%clk 0:00:30.2]} 46. Kb4 {[%clk 0:00:07.4]} 46... Bb5 {[%clk 0:00:29.3]}
47. Kc3 {[%clk 0:00:07.6]} 47... Bd3 {[%clk 0:00:29.5]} 48. Kd4 {[%clk 0:00:08]}
48... Ke6 {[%clk 0:00:29.2]} 49. Kc5 {[%clk 0:00:08.2]} 49... g5 {[%clk
0:00:28.5]} 50. Bd2 {[%clk 0:00:06.1]} 50... g4 {[%clk 0:00:27.4]} 51. Kb4
{[%clk 0:00:03.8]} 51... h5 {[%clk 0:00:26.9]} 52. Kc3 {[%clk 0:00:03.8]} 52...
h4 {[%clk 0:00:25.8]} 53. gxh4 {[%clk 0:00:03]} 53... g3 {[%clk 0:00:26.7]} 54.
h5 {[%clk 0:00:03.9]} 54... g2 {[%clk 0:00:26.2]} 55. h6 {[%clk 0:00:04.8]}
55... g1=Q {[%clk 0:00:26.2]} 56. h7 {[%clk 0:00:05.7]} 56... Qa1+ {[%clk
0:00:25.8]} 0-1

[Event "Late-Titled-Tuesday-Blitz-November-28-2023"]
[Site "Chess.com"]
[Date "2023.11.28"]
[Round "2"]
[White "StellarChessPro"]
[Black "kingofthenil"]
[Result "1-0"]
[WhiteElo "2524"]
[BlackElo "2708"]
[TimeControl "180+1"]
[EndTime "14:17:41 PST"]
[Termination "StellarChessPro won on time"]

1. b3 {[%clk 0:03:00.9]} 1... e5 {[%clk 0:02:59.5]} 2. Bb2 {[%clk 0:03:01.5]}
2... Nc6 {[%clk 0:02:59.6]} 3. e3 {[%clk 0:03:02.2]} 3... Nge7 {[%clk
0:02:55.4]} 4. Bb5 {[%clk 0:03:02.5]} 4... a6 {[%clk 0:02:55]} 5. Bxc6 {[%clk
0:03:03]} 5... Nxc6 {[%clk 0:02:55.4]} 6. Ne2 {[%clk 0:03:03.9]} 6... d5 {[%clk
0:02:54.3]} 7. O-O {[%clk 0:03:04.5]} 7... Bg4 {[%clk 0:02:46.8]} 8. h3 {[%clk
0:03:04.5]} 8... Bh5 {[%clk 0:02:46.9]} 9. f4 {[%clk 0:03:01]} 9... exf4 {[%clk
0:02:46.3]} 10. Rxf4 {[%clk 0:03:01.1]} 10... Bd6 {[%clk 0:02:45.5]} 11. Rf2
{[%clk 0:02:54.9]} 11... Qg5 {[%clk 0:02:43.9]} 12. Qf1 {[%clk 0:02:47.4]} 12...
Bxe2 {[%clk 0:02:24.4]} 13. Rxe2 {[%clk 0:02:29.9]} 13... Qg3 {[%clk 0:02:25.3]}
14. Qf3 {[%clk 0:02:21.8]} 14... Qh2+ {[%clk 0:02:10.4]} 15. Kf2 {[%clk
0:02:22.2]} 15... O-O-O {[%clk 0:02:06.3]} 16. Nc3 {[%clk 0:02:07]} 16... Ne5
{[%clk 0:02:05.4]} 17. Qf5+ {[%clk 0:02:00.7]} 17... Kb8 {[%clk 0:02:05.3]} 18.
Ke1 {[%clk 0:01:27.6]} 18... Qg1+ {[%clk 0:00:31.3]} 19. Qf1 {[%clk 0:01:27.4]}
19... Nd3+ {[%clk 0:00:27.4]} 20. cxd3 {[%clk 0:01:24.2]} 20... Bg3+ {[%clk
0:00:28.3]} 21. Rf2 {[%clk 0:01:20.6]} 21... Bxf2+ {[%clk 0:00:29.2]} 22. Ke2
{[%clk 0:01:20.5]} 22... Qxf1+ {[%clk 0:00:28.8]} 23. Rxf1 {[%clk 0:01:20.2]}
23... Bh4 {[%clk 0:00:29.4]} 24. Rxf7 {[%clk 0:01:19.7]} 24... Bf6 {[%clk
0:00:29.2]} 25. Na4 {[%clk 0:01:11.8]} 25... Rhf8 {[%clk 0:00:27.9]} 26. Bxf6
{[%clk 0:01:10.1]} 26... gxf6 {[%clk 0:00:22.5]} 27. Rxh7 {[%clk 0:01:09.3]}
27... Rh8 {[%clk 0:00:18.9]} 28. Rxh8 {[%clk 0:01:07.1]} 28... Rxh8 {[%clk
0:00:19.1]} 29. Kf3 {[%clk 0:01:07.1]} 29... Kc8 {[%clk 0:00:16.7]} 30. d4
{[%clk 0:01:07.6]} 30... b6 {[%clk 0:00:16.1]} 31. Nc3 {[%clk 0:01:07.9]} 31...
c6 {[%clk 0:00:16.1]} 32. Ne2 {[%clk 0:01:07.5]} 32... Kd7 {[%clk 0:00:16.1]}
33. Nf4 {[%clk 0:01:08]} 33... f5 {[%clk 0:00:15]} 34. Ng6 {[%clk 0:01:07.3]}
34... Rh6 {[%clk 0:00:14.3]} 35. Ne5+ {[%clk 0:01:06.8]} 35... Ke7 {[%clk
0:00:14.3]} 36. Kg3 {[%clk 0:01:04.4]} 36... Rh7 {[%clk 0:00:13.9]} 37. Nxc6+
{[%clk 0:01:00.4]} 37... Kf6 {[%clk 0:00:14.8]} 38. Ne5 {[%clk 0:01:00.7]} 38...
Rc7 {[%clk 0:00:13.7]} 39. Nf3 {[%clk 0:00:56.3]} 39... Rc2 {[%clk 0:00:14.6]}
40. h4 {[%clk 0:00:56.6]} 40... Rxa2 {[%clk 0:00:14.7]} 41. Kf4 {[%clk
0:00:56.3]} 41... Rb2 {[%clk 0:00:14.5]} 42. h5 {[%clk 0:00:56.3]} 42... Rxb3
{[%clk 0:00:15]} 43. h6 {[%clk 0:00:53.9]} 43... Rb1 {[%clk 0:00:15.9]} 44. g3
{[%clk 0:00:53.1]} 44... Rh1 {[%clk 0:00:15.2]} 45. Nh4 {[%clk 0:00:53.7]} 45...
a5 {[%clk 0:00:15.6]} 46. h7 {[%clk 0:00:52.4]} 46... Kg7 {[%clk 0:00:16.5]} 47.
Nxf5+ {[%clk 0:00:52.1]} 47... Kxh7 {[%clk 0:00:16.7]} 48. Ne7 {[%clk
0:00:51.7]} 48... a4 {[%clk 0:00:10.6]} 49. Nxd5 {[%clk 0:00:51.8]} 49... a3
{[%clk 0:00:11.5]} 50. Nc3 {[%clk 0:00:52.5]} 50... Rc1 {[%clk 0:00:11.7]} 51.
Na2 {[%clk 0:00:47.4]} 51... Rc2 {[%clk 0:00:11.8]} 52. Nb4 {[%clk 0:00:47.9]}
52... Rb2 {[%clk 0:00:12.2]} 53. Nd3 {[%clk 0:00:48.3]} 53... Rb1 {[%clk
0:00:11.7]} 54. d5 {[%clk 0:00:48.4]} 54... a2 {[%clk 0:00:11.8]} 55. d6 {[%clk
0:00:48.5]} 55... a1=Q {[%clk 0:00:12.2]} 56. d7 {[%clk 0:00:49.1]} 56... Qf6+
{[%clk 0:00:12.5]} 57. Ke4 {[%clk 0:00:49.3]} 57... Qe6+ {[%clk 0:00:13]} 58.
Ne5 {[%clk 0:00:50.2]} 58... Rb4+ {[%clk 0:00:13.1]} 59. d4 {[%clk 0:00:50.8]}
59... Qe7 {[%clk 0:00:09.2]} 60. Kd5 {[%clk 0:00:47.5]} 60... Rb5+ {[%clk
0:00:09.3]} 61. Kc6 {[%clk 0:00:47.4]} 61... Rb2 {[%clk 0:00:05.9]} 62. Kc7
{[%clk 0:00:45.7]} 62... Rc2+ {[%clk 0:00:03.7]} 63. Nc6 {[%clk 0:00:44.1]}
63... Qe6 {[%clk 0:00:03.8]} 64. d8=Q {[%clk 0:00:39.6]} 64... Qxc6+ {[%clk
0:00:04.2]} 65. Kb8 {[%clk 0:00:38.3]} 65... b5 {[%clk 0:00:05.1]} 66. d5 {[%clk
0:00:34.5]} 66... Kg6 {[%clk 0:00:06]} 67. dxc6 {[%clk 0:00:34.6]} 1-0

[Event "Late-Titled-Tuesday-Blitz-November-28-2023"]
[Site "Chess.com"]
[Date "2023.11.28"]
[Round "2"]
[White "GoltsevDmitry2000"]
[Black "GMJustin"]
[Result "1/2-1/2"]
[WhiteElo "2664"]
[BlackElo "2330"]
[TimeControl "180+1"]
[EndTime "14:17:43 PST"]
[Termination "Game drawn - insufficient material"]

1. e4 {[%clk 0:02:59.6]} 1... e5 {[%clk 0:02:55.4]} 2. Nf3 {[%clk 0:02:59.3]}
2... Nc6 {[%clk 0:02:55.6]} 3. Bb5 {[%clk 0:02:59]} 3... a6 {[%clk 0:02:54.9]}
4. Ba4 {[%clk 0:02:59]} 4... Nf6 {[%clk 0:02:54.1]} 5. O-O {[%clk 0:02:59.6]}
5... Be7 {[%clk 0:02:52.9]} 6. Re1 {[%clk 0:02:59.6]} 6... d6 {[%clk 0:02:52.9]}
7. c3 {[%clk 0:02:59.9]} 7... Bg4 {[%clk 0:02:47.1]} 8. h3 {[%clk 0:02:57]} 8...
Bh5 {[%clk 0:02:45]} 9. d4 {[%clk 0:02:56.6]} 9... b5 {[%clk 0:02:41.6]} 10. Bc2
{[%clk 0:02:56]} 10... exd4 {[%clk 0:02:38.1]} 11. g4 {[%clk 0:02:52.7]} 11...
Nxg4 {[%clk 0:02:26.3]} 12. hxg4 {[%clk 0:02:50.9]} 12... Bxg4 {[%clk 0:02:26]}
13. cxd4 {[%clk 0:02:48.6]} 13... Bxf3 {[%clk 0:02:14.5]} 14. Qxf3 {[%clk
0:02:48.1]} 14... Nxd4 {[%clk 0:02:14.2]} 15. Qd3 {[%clk 0:02:45]} 15... c5
{[%clk 0:02:09.5]} 16. Bf4 {[%clk 0:02:41.3]} 16... O-O {[%clk 0:02:02.6]} 17.
e5 {[%clk 0:02:37.9]} 17... Nxc2 {[%clk 0:01:52.4]} 18. Qxc2 {[%clk 0:02:36.8]}
18... dxe5 {[%clk 0:01:50.1]} 19. Bxe5 {[%clk 0:02:36.8]} 19... Bd6 {[%clk
0:01:44.8]} 20. Bxd6 {[%clk 0:02:35.8]} 20... Qxd6 {[%clk 0:01:44.3]} 21. Nc3
{[%clk 0:02:35.6]} 21... Rfe8 {[%clk 0:01:38.2]} 22. Rad1 {[%clk 0:02:25.5]}
22... Rxe1+ {[%clk 0:01:31.1]} 23. Rxe1 {[%clk 0:02:26.4]} 23... c4 {[%clk
0:01:26.3]} 24. Qe4 {[%clk 0:02:24.9]} 24... Rf8 {[%clk 0:01:25]} 25. Nd5 {[%clk
0:02:17.2]} 25... h6 {[%clk 0:01:15.7]} 26. Re3 {[%clk 0:02:08.5]} 26... Rd8
{[%clk 0:01:08.4]} 27. Ne7+ {[%clk 0:02:05.8]} 27... Kh8 {[%clk 0:01:02.5]} 28.
Nf5 {[%clk 0:02:06]} 28... Qf6 {[%clk 0:00:55.6]} 29. Rg3 {[%clk 0:02:01.5]}
29... Qxb2 {[%clk 0:00:43.5]} 30. Rxg7 {[%clk 0:01:55.5]} 30... Qf6 {[%clk
0:00:13.6]} 31. Rg3 {[%clk 0:01:00.6]} 31... Rg8 {[%clk 0:00:12.8]} 32. Rxg8+
{[%clk 0:00:56.3]} 32... Kxg8 {[%clk 0:00:13.6]} 33. Kh2 {[%clk 0:00:49.5]}
33... c3 {[%clk 0:00:12.6]} 34. Ne3 {[%clk 0:00:43.5]} 34... Qd6+ {[%clk
0:00:10.7]} 35. Kg2 {[%clk 0:00:41.1]} 35... Qg6+ {[%clk 0:00:09.8]} 36. Kf3
{[%clk 0:00:34.9]} 36... Qxe4+ {[%clk 0:00:07.3]} 37. Kxe4 {[%clk 0:00:35.8]}
37... h5 {[%clk 0:00:06.2]} 38. Kd3 {[%clk 0:00:33.4]} 38... h4 {[%clk
0:00:06.3]} 39. Kxc3 {[%clk 0:00:32.6]} 39... h3 {[%clk 0:00:06.4]} 40. Nf1
{[%clk 0:00:31.5]} 40... Kf8 {[%clk 0:00:05.6]} 41. Kd3 {[%clk 0:00:31.8]} 41...
Ke7 {[%clk 0:00:05.2]} 42. Ke3 {[%clk 0:00:32.3]} 42... Kd6 {[%clk 0:00:05.1]}
43. Kf3 {[%clk 0:00:32.3]} 43... Kc5 {[%clk 0:00:05.2]} 44. Kg3 {[%clk 0:00:33]}
44... Kb4 {[%clk 0:00:05.5]} 45. Ne3 {[%clk 0:00:29.9]} 45... Ka3 {[%clk
0:00:05]} 46. Nc2+ {[%clk 0:00:30.1]} 46... Kxa2 {[%clk 0:00:02.8]} 47. Nb4+
{[%clk 0:00:30.4]} 47... Ka3 {[%clk 0:00:03]} 48. Nxa6 {[%clk 0:00:31]} 48... b4
{[%clk 0:00:02.8]} 49. Nc5 {[%clk 0:00:15.6]} 49... b3 {[%clk 0:00:02.7]} 50.
Ne4 {[%clk 0:00:15.9]} 50... b2 {[%clk 0:00:02.7]} 51. Nd2 {[%clk 0:00:16.1]}
51... Ka2 {[%clk 0:00:02.7]} 52. Kxh3 {[%clk 0:00:16.5]} 52... b1=Q {[%clk
0:00:02.7]} 53. Nxb1 {[%clk 0:00:16.7]} 53... Kxb1 {[%clk 0:00:03.1]} 54. Kg4
{[%clk 0:00:17.6]} 54... Kc2 {[%clk 0:00:03.4]} 55. Kf5 {[%clk 0:00:18.2]} 55...
Kd3 {[%clk 0:00:03.5]} 56. Ke5 {[%clk 0:00:12.1]} 56... Ke2 {[%clk 0:00:03.3]}
57. f4 {[%clk 0:00:11.9]} 57... Kf3 {[%clk 0:00:03.5]} 58. f5 {[%clk 0:00:12.1]}
58... Kg4 {[%clk 0:00:03.8]} 59. Kf6 {[%clk 0:00:07.9]} 59... Kf4 {[%clk
0:00:03.9]} 60. Kxf7 {[%clk 0:00:07.8]} 60... Kxf5 {[%clk 0:00:04.6]} 1/2-1/2

[Event "Late-Titled-Tuesday-Blitz-November-28-2023"]
[Site "Chess.com"]
[Date "2023.11.28"]
[Round "2"]
[White "Alimpic"]
[Black "zivicd"]
[Result "1/2-1/2"]
[WhiteElo "2508"]
[BlackElo "2332"]
[TimeControl "180+1"]
[EndTime "14:17:43 PST"]
[Termination "Game drawn by repetition"]

1. d4 {[%clk 0:02:55]} 1... Nf6 {[%clk 0:02:59.5]} 2. Nf3 {[%clk 0:02:53.2]}
2... e6 {[%clk 0:02:59.5]} 3. g3 {[%clk 0:02:52.6]} 3... b6 {[%clk 0:02:59.4]}
4. Bg2 {[%clk 0:02:52.5]} 4... Bb7 {[%clk 0:02:59.9]} 5. O-O {[%clk 0:02:53]}
5... Be7 {[%clk 0:03:00.2]} 6. c4 {[%clk 0:02:53]} 6... O-O {[%clk 0:03:00.3]}
7. Nc3 {[%clk 0:02:53.5]} 7... Ne4 {[%clk 0:03:00.5]} 8. Bd2 {[%clk 0:02:53.4]}
8... Nxc3 {[%clk 0:02:57.9]} 9. Bxc3 {[%clk 0:02:54.3]} 9... f5 {[%clk 0:02:56]}
10. Ne5 {[%clk 0:02:33.7]} 10... Bxg2 {[%clk 0:02:54.9]} 11. Kxg2 {[%clk
0:02:34.6]} 11... Bf6 {[%clk 0:02:43.9]} 12. Nf3 {[%clk 0:02:28.8]} 12... d6
{[%clk 0:02:32.1]} 13. Qd3 {[%clk 0:02:26.9]} 13... Nd7 {[%clk 0:02:11.2]} 14.
e4 {[%clk 0:02:25.5]} 14... g6 {[%clk 0:02:09.1]} 15. e5 {[%clk 0:02:18.9]}
15... dxe5 {[%clk 0:01:54.2]} 16. dxe5 {[%clk 0:02:17.8]} 16... Be7 {[%clk
0:01:46.4]} 17. Rad1 {[%clk 0:02:04.1]} 17... Nc5 {[%clk 0:01:44.5]} 18. Qe3
{[%clk 0:02:00.9]} 18... Qc8 {[%clk 0:01:42.8]} 19. Nd4 {[%clk 0:01:51.5]} 19...
Qb7+ {[%clk 0:01:42.2]} 20. f3 {[%clk 0:01:43.6]} 20... a5 {[%clk 0:01:15.2]}
21. Rd2 {[%clk 0:01:34.8]} 21... Rad8 {[%clk 0:01:06]} 22. Rfd1 {[%clk
0:01:32.8]} 22... Kg7 {[%clk 0:00:41.9]} 23. b3 {[%clk 0:01:26.9]} 23... h6
{[%clk 0:00:39.3]} 24. Kg1 {[%clk 0:01:12.5]} 24... g5 {[%clk 0:00:38]} 25. a3
{[%clk 0:00:58.1]} 25... Kf7 {[%clk 0:00:34.2]} 26. Bb2 {[%clk 0:00:39.5]} 26...
Rfe8 {[%clk 0:00:12.1]} 27. b4 {[%clk 0:00:37.6]} 27... Na4 {[%clk 0:00:11]} 28.
Qb3 {[%clk 0:00:34.6]} 28... Nxb2 {[%clk 0:00:10.1]} 29. Rxb2 {[%clk 0:00:35.5]}
29... c5 {[%clk 0:00:09.7]} 30. bxc5 {[%clk 0:00:31.7]} 30... Bxc5 {[%clk
0:00:10.6]} 31. Rbd2 {[%clk 0:00:28.8]} 31... Rxd4 {[%clk 0:00:10.6]} 32. Rxd4
{[%clk 0:00:29.7]} 32... Rd8 {[%clk 0:00:11]} 33. Qe3 {[%clk 0:00:22.7]} 33...
Rxd4 {[%clk 0:00:10.2]} 34. Rxd4 {[%clk 0:00:23.6]} 34... Bxd4 {[%clk
0:00:09.8]} 35. Qxd4 {[%clk 0:00:24.5]} 35... Qc6 {[%clk 0:00:07.9]} 36. f4
{[%clk 0:00:13.5]} 36... Kg6 {[%clk 0:00:07.9]} 37. Qd8 {[%clk 0:00:10.7]} 37...
Qc5+ {[%clk 0:00:06]} 38. Kg2 {[%clk 0:00:10.8]} 38... Qc6+ {[%clk 0:00:05.9]}
39. Kh3 {[%clk 0:00:09.6]} 39... Qf3 {[%clk 0:00:03.8]} 40. Qf6+ {[%clk
0:00:09.2]} 40... Kh7 {[%clk 0:00:03]} 41. Qf7+ {[%clk 0:00:09.5]} 41... Kh8
{[%clk 0:00:02.8]} 42. Qf8+ {[%clk 0:00:10.4]} 42... Kh7 {[%clk 0:00:03.1]} 43.
Qf7+ {[%clk 0:00:11.3]} 43... Kh8 {[%clk 0:00:03.5]} 44. Qf6+ {[%clk 0:00:12.2]}
44... Kh7 {[%clk 0:00:03.9]} 45. Qe7+ {[%clk 0:00:08.5]} 45... Kh8 {[%clk
0:00:04.1]} 46. Qd8+ {[%clk 0:00:08.2]} 46... Kh7 {[%clk 0:00:04.3]} 47. Qd7+
{[%clk 0:00:08.6]} 47... Kh8 {[%clk 0:00:04.7]} 48. Qe8+ {[%clk 0:00:08.7]}
48... Kh7 {[%clk 0:00:05]} 49. Qe7+ {[%clk 0:00:09.4]} 49... Kh8 {[%clk
0:00:05.2]} 50. fxg5 {[%clk 0:00:09.7]} 50... Qg4+ {[%clk 0:00:04.9]} 51. Kg2
{[%clk 0:00:10.1]} 51... Qe2+ {[%clk 0:00:05.5]} 52. Kg1 {[%clk 0:00:10.5]}
52... Qe1+ {[%clk 0:00:06]} 53. Kg2 {[%clk 0:00:11.2]} 53... Qe2+ {[%clk
0:00:06.6]} 54. Kh3 {[%clk 0:00:11.2]} 54... Qg4+ {[%clk 0:00:06.8]} 55. Kg2
{[%clk 0:00:11.6]} 55... Qe2+ {[%clk 0:00:07.5]} 1/2-1/2